fUSD/lending_fUSD_20241230
["ID","MTS","AMOUNT","RATE_DAILY","PERIOD"]
[347189872,1735554727785,-7283.26,0.0001589,2]
[347189873,1735554727795,-538.35,0.0001589,2]
[347189874,1735554727804,-1245.34,0.0001589,2]
[347189875,1735554727814,-1874.96,0.0001589,2]
[347189876,1735554727823,-1437.99,0.0001589,2]
[347189877,1735554727833,-4047.83,0.0001589,2]
[347189878,1735554727845,-3415.24,0.0001589,2]
[347189879,1735554727855,-150.748465,0.0001589,2]
[347189880,1735554727864,-2434.76,0.0001589,2]
[347189881,1735554727874,-500.0,0.0001589,2]
[347189882,1735554727883,-2358.95,0.0001589,2]
[347189883,1735554727892,-1380.68,0.0001589,2]
[347189884,1735554727902,-2910.83,0.0001589,2]
[347189885,1735554727911,-500.0,0.0001589,2]
[347189886,1735554727920,-3932.53,0.0001589,2]
[347189887,1735554727931,-2451.98,0.0001589,2]
[347189888,1735554727940,-1630.29,0.0001589,2]
[347189889,1735554727950,-374.18440793,0.0001589,2]
[347189890,1735554727959,-887.39,0.0001589,2]
[347189891,1735554727968,-1907.3,0.0001589,2]
[347189892,1735554727978,-2806.59,0.0001589,2]
[347189893,1735554727988,-2710.39,0.0001589,2]
[347189894,1735554727998,-5043.23,0.0001589,2]
[347189895,1735554728008,-151.0,0.0001589,2]
[347189896,1735554728017,-1803.4,0.0001589,2]
[347189897,1735554728027,-578.16,0.0001589,2]
[347189898,1735554728037,-697.826531,0.0001589,2]
[347189899,1735554728047,-500.0,0.0001589,2]
[347189900,1735554728057,-15410.93,0.0001589,2]
[347189901,1735554728067,-500.0,0.0001589,2]
[347189902,1735554728076,-778.96,0.0001589,2]
[347189903,1735554728085,-772.53,0.0001589,2]
[347189904,1735554728094,-3063.52,0.0001589,2]
[347189905,1735554728103,-500.0,0.0001589,2]
[347189906,1735554728116,-1315.44,0.0001589,2]
[347189907,1735554728126,-10853.58,0.0001589,2]
[347189908,1735554728135,-1018.75,0.0001589,2]
[347189909,1735554728145,-1539.27,0.0001589,2]
[347189910,1735554728155,-1421.06,0.0001589,2]
[347189911,1735554728164,-2023.47,0.0001589,2]
[347189912,1735554728173,-4226.36,0.0001589,2]
[347189913,1735554728193,-1661.62,0.0001589,2]
[347189914,1735554728217,-1154.95,0.0001589,2]
[347189915,1735554728240,-500.0,0.0001589,2]
[347189916,1735554728269,-1190.535245,0.0001589,2]
[347189917,1735554728304,-19002.09,0.0001589,2]
[347189918,1735554728337,-1060.349808,0.0001589,2]
[347189919,1735554728371,-13799.11,0.0001589,2]
[347189920,1735554728408,-2447.22,0.0001589,2]
[347189921,1735554728441,-1853.19,0.0001589,2]
[347189922,1735554728451,-4504.39,0.0001589,2]
[347189923,1735554728460,-500.0,0.0001589,2]
[347189924,1735554728469,-579.82,0.0001589,2]
[347189925,1735554728479,-1190.535245,0.0001589,2]
[347189926,1735554728488,-1368.0,0.0001589,2]
[347189927,1735554728497,-574.32,0.0001589,2]
[347189928,1735554728507,-7288.85,0.0001589,2]
[347189929,1735554728516,-3768.96,0.0001589,2]
[347189930,1735554728525,-1860.22,0.0001589,2]
[347189931,1735554728535,-1624.8,0.0001589,2]
[347189932,1735554728545,-3241.01,0.0001589,2]
[347189933,1735554728555,-4417.28,0.0001589,2]
[347189934,1735554728564,-1658.66,0.0001589,2]
[347189935,1735554728574,-1376.93,0.0001589,2]
[347189936,1735554728583,-921.331711,0.0001589,2]
[347189937,1735554728593,-565.05,0.0001589,2]
[347189938,1735554728603,-511.39,0.0001589,2]
[347189939,1735554728612,-5391.31,0.0001589,2]
[347189940,1735554728622,-12335.02,0.0001589,2]
[347189941,1735554728631,-2462.72,0.0001589,2]
[347189942,1735554728641,-4206.8,0.0001589,2]
[347189943,1735554728651,-624.54,0.0001589,2]
[347189944,1735554728660,-1492.07,0.0001589,2]
[347189945,1735554728670,-1329.67,0.0001589,2]
[347189946,1735554728679,-500.0,0.0001589,2]
[347189947,1735554728688,-276.635621,0.0001589,2]
[347189948,1735554728698,-3747.13,0.0001589,2]
[347189949,1735554728708,-500.0,0.0001589,2]
[347189950,1735554728717,-2416.75,0.0001589,2]
[347189951,1735554728726,-500.0,0.0001589,2]
[347189952,1735554728735,-276.635621,0.0001589,2]
[347189953,1735554728745,-1532.57,0.0001589,2]
[347189954,1735554728754,-1109.85,0.0001589,2]
[347189955,1735554728764,-667.51,0.0001589,2]
[347189956,1735554728773,-1884.81,0.0001589,2]
[347189957,1735554728783,-2393.86,0.0001589,2]
[347189958,1735554728792,-500.0,0.0001589,2]
[347189959,1735554728802,-768.73,0.0001589,2]
[347189960,1735554728812,-500.0,0.0001589,2]
[347189961,1735554728821,-500.0,0.0001589,2]
[347189962,1735554728830,-2701.5,0.0001589,2]
[347189963,1735554728840,-1145.33,0.0001589,2]
[347189964,1735554728851,-500.0,0.0001589,2]
[347189965,1735554728861,-1842.45,0.0001589,2]
[347189966,1735554728870,-1022.94,0.0001589,2]
[347189967,1735554728879,-151.0,0.0001589,2]
[347189968,1735554728888,-2458.37,0.0001589,2]
[347189969,1735554728898,-2768.22,0.0001589,2]
[347189970,1735554728907,-500.0,0.0001589,2]
[347189971,1735554728916,-2222.11,0.0001589,2]
[347189972,1735554728926,-1309.59,0.0001589,2]
[347189973,1735554728935,-602.240036,0.0001589,2]
[347189974,1735554728945,-500.0,0.0001589,2]
[347189975,1735554728954,-151.0,0.0001589,2]
[347189976,1735554728964,-1184.42,0.0001589,2]
[347189977,1735554728973,-1975.49,0.0001589,2]
[347189978,1735554728982,-2054.1,0.0001589,2]
[347189979,1735554728992,-1526.92,0.0001589,2]
[347189980,1735554729001,-607.46,0.0001589,2]
[347189981,1735554729011,-500.0,0.0001589,2]
[347189982,1735554729020,-500.0,0.0001589,2]
[347189983,1735554729030,-2498.78,0.0001589,2]
[347189984,1735554729039,-633.07,0.0001589,2]
[347189985,1735554729049,-1514.9,0.0001589,2]
[347189986,1735554729058,-502.24,0.0001589,2]
[347189987,1735554729067,-798.38,0.0001589,2]
[347189988,1735554729076,-790.24585284,0.000159,2]
[347189989,1735554729086,-581.0478353,0.000159,2]
[347189990,1735554729095,-202.0,0.0001594,2]
[347189991,1735554729104,-500.0,0.00015942,2]
[347189992,1735554729118,-244.31622857,0.00015942,2]
[347189993,1735554729128,-3000.0,0.0001596,2]
[347189994,1735554729138,-456.0,0.0001598,2]
[347189995,1735554729147,-314.0,0.0001598,2]
[347189996,1735554729156,-204.0,0.0001598,2]
[347189997,1735554729167,-228.0,0.0001598,2]
[347189998,1735554729176,-505114.28363542,0.0001598,2]
[347189999,1735554729186,-228.0,0.0001598,2]
[347190000,1735554729195,-228.0,0.0001598,2]
[347190001,1735554729205,-6009.9715217,0.00015989,2]
[347190002,1735554729214,-6181.5360427,0.00015989,2]
[347190003,1735554729223,-6353.1005637,0.00015989,2]
[347190004,1735554729233,-14374.7739638,0.00015989,2]
[347190005,1735554729242,-14785.1255272,0.00015989,2]
[347190006,1735554729251,-15195.4770905,0.00015989,2]
[347190007,1735554729261,-557762.70198122,0.00016,4]
[347190008,1735554729866,-3058.95705493,0.00016,4]
[347190009,1735554729901,-586.18443852,0.00013698,2]
[347190010,1735554729911,-500.0,0.00013972,2]
[347190011,1735554729920,-500.0,0.00015068,2]
[347190012,1735554729929,-3183.97548828,0.00016,4]
[347190013,1735554729960,-15535.5421235,0.00016,4]
[347190014,1735554730709,-151.01,0.00013499,2]
[347190015,1735554730719,-198.71350075,0.00013698,2]
[347190016,1735554730739,-301.28649925,0.00013698,2]
[347190017,1735554730748,-500.0,0.00013698,2]
[347190018,1735554730757,-642.31192734,0.00013698,2]
[347190019,1735554730766,-500.0,0.00013698,2]
[347190020,1735554730775,-500.0,0.00013698,2]
[347190021,1735554730785,-500.0,0.00013972,2]
[347190022,1735554730794,-500.0,0.00013972,2]
[347190023,1735554730803,-500.0,0.00013972,2]
[347190024,1735554730813,-7.40157341,0.00014246,2]
[347190025,1735554731318,-22.9649246,0.00014246,2]
[347190026,1735554731355,-94.57449593,0.00014246,2]
[347190027,1735554731391,-2050.0,0.00013972,2]
[347190028,1735554731400,-375.05900606,0.00014246,2]
[347190029,1735554731410,-500.0,0.00014246,2]
[347190030,1735554731419,-195.38807101,0.00014246,2]
[347190032,1735554949127,603.23,0.00010708,2]
[347190183,1735555559673,-734.65,0.00016658,30]
[347190184,1735555559791,-181208.40489385,0.000175,30]
[347190185,1735555559893,-242.93,0.000179,31]
[347190186,1735555559941,-242.93,0.000179,31]
[347190187,1735555559991,-242.93,0.000179,31]
[347190188,1735555560044,-242.93,0.000179,31]
[347190189,1735555560105,-242.93,0.000179,31]
[347190190,1735555560166,-242.93,0.000179,31]
[347190191,1735555560222,-242.93,0.000179,31]
[347190192,1735555560280,-242.93,0.000179,31]
[347190193,1735555560336,-242.93,0.000179,31]
[347190194,1735555560391,-242.93,0.000179,31]
[347190195,1735555560448,-242.93,0.000179,31]
[347190196,1735555560501,-242.93,0.000179,31]
[347190197,1735555560550,-242.93,0.000179,31]
[347190198,1735555560602,-242.93,0.000179,31]
[347190199,1735555560654,-242.93,0.000179,31]
[347190200,1735555560703,-242.93,0.000179,31]
[347190201,1735555560844,-8379.78975186,0.00019,30]
[347190202,1735555560889,-204.59807881,0.00019,90]
[347190203,1735555560962,-734.65,0.00019242,30]
[347190204,1735555561048,-4244.98859681,0.0002,30]
[347190205,1735555561101,-4696.7101312,0.0002,30]
[347190206,1735555561149,-230.0,0.0002,30]
[347190207,1735555561195,-229599.36081948,0.0002,30]
[347190208,1735555561242,-6742.45107348,0.0002,30]
[347190209,1735555561314,-150.0,0.00020168,120]
[347190210,1735555561360,-150.0,0.0002028,120]
[347190211,1735555561407,-150.0,0.00020363,120]
[347190212,1735555561454,-150.0,0.00020489,120]
[347190213,1735555561500,-150.0,0.00020651,120]
[347190214,1735555561548,-150.0,0.00020681,120]
[347190215,1735555561593,-150.0,0.00020744,120]
[347190216,1735555561649,-1000.0,0.00021,120]
[347190217,1735555561698,-150.0,0.00021065,120]
[347190218,1735555561744,-150.0,0.00021451,120]
[347190219,1735555561792,-150.0,0.00021453,120]
[347190220,1735555561840,-150.0,0.00021677,120]
[347190221,1735555561889,-242.93,0.000218,31]
[347190222,1735555561939,-242.93,0.000218,31]
[347190223,1735555561991,-242.93,0.000218,31]
[347190224,1735555562040,-242.93,0.000218,31]
[347190225,1735555562090,-242.93,0.000218,31]
[347190226,1735555562144,-242.93,0.000218,31]
[347190227,1735555562195,-242.93,0.000218,31]
[347190228,1735555562245,-242.93,0.000218,31]
[347190229,1735555562296,-242.93,0.000218,31]
[347190230,1735555562346,-242.93,0.000218,31]
[347190231,1735555562396,-242.93,0.000218,31]
[347190232,1735555562454,-242.93,0.000218,31]
[347190233,1735555562507,-242.93,0.000218,31]
[347190234,1735555562558,-242.93,0.000218,31]
[347190235,1735555562609,-242.93,0.000218,31]
[347190236,1735555562659,-242.93,0.000218,31]
[347190237,1735555562707,-242.93,0.000218,31]
[347190238,1735555562761,-242.93,0.000218,31]
[347190239,1735555562816,-242.93,0.000218,31]
[347190240,1735555562866,-242.93,0.000218,31]
[347190241,1735555562916,-242.93,0.000218,31]
[347190242,1735555562970,-242.93,0.000218,31]
[347190243,1735555563019,-242.93,0.000218,31]
[347190244,1735555563075,-242.93,0.000218,31]
[347190245,1735555563128,-734.65,0.00021826,30]
[347190246,1735555563178,-2222.46383339,0.00021917,30]
[347190247,1735555563227,-816.5504116,0.00021917,120]
[347190248,1735555563278,-150.0,0.00021951,120]
[347190249,1735555563529,-5000.0,0.00022,30]
[347190250,1735555563582,-270257.45460294,0.00022,30]
[347190251,1735555563632,-10545.43594831,0.00022,30]
[347190252,1735555563685,-2000.0,0.00022,120]
[347190253,1735555563734,-150.0,0.00022257,120]
[347190254,1735555563782,-150.0,0.00022401,120]
[347190255,1735555563832,-150.0,0.00022437,120]
[347190256,1735555563878,-500.0,0.00022522,120]
[347190257,1735555563929,-150.0,0.00022755,120]
[347190258,1735555563983,-150.0,0.00022771,120]
[347190259,1735555564038,-1000.0,0.00023,31]
[347190260,1735555564087,-232409.0983904,0.00023,30]
[347190261,1735555564141,-500.0,0.00023,30]
[347190262,1735555564190,-500.0,0.00023,30]
[347190263,1735555564242,-1900.0,0.00023,30]
[347190264,1735555564290,-500.0,0.00023,30]
[347190265,1735555564337,-500.0,0.00023,30]
[347190266,1735555564386,-500.0,0.00023,30]
[347190267,1735555564438,-274.22660978,0.00023,30]
[347190268,1735555564485,-1900.0,0.00023,30]
[347190269,1735555564531,-159.30966302,0.00023,30]
[347190270,1735555564578,-500.0,0.00023,30]
[347190271,1735555564623,-208.17590592,0.00023,30]
[347190272,1735555564673,-1900.0,0.00023,30]
[347190273,1735555564719,-1900.0,0.00023,30]
[347190274,1735555564766,-500.0,0.00023,30]
[347190275,1735555564813,-1900.0,0.00023,30]
[347190276,1735555564864,-1900.0,0.00023,30]
[347190277,1735555564915,-1900.0,0.00023,30]
[347190278,1735555564967,-1900.0,0.00023,30]
[347190279,1735555565019,-1900.0,0.00023,30]
[347190280,1735555565074,-1900.0,0.00023,30]
[347190281,1735555565133,-1200.0,0.00023,30]
[347190282,1735555565187,-1900.0,0.00023,30]
[347190283,1735555565243,-1200.0,0.00023,30]
[347190284,1735555565294,-547.68961749,0.00023,30]
[347190285,1735555565351,-500.7,0.00023,30]
[347190286,1735555565401,-810.0,0.00023,30]
[347190287,1735555565448,-986.94900678,0.00023,30]
[347190288,1735555565497,-500.0,0.00023,30]
[347190289,1735555565543,-500.0,0.00023,30]
[347190290,1735555565589,-160.213513,0.00023,30]
[347190291,1735555565635,-1200.0,0.00023,30]
[347190292,1735555565682,-500.0,0.00023,30]
[347190293,1735555565730,-500.0,0.00023,30]
[347190294,1735555565776,-500.0,0.00023,30]
[347190295,1735555565823,-1200.0,0.00023,30]
[347190296,1735555565869,-500.0,0.00023,30]
[347190297,1735555565913,-1900.0,0.00023,30]
[347190298,1735555565959,-500.0,0.00023,30]
[347190299,1735555566007,-1900.0,0.00023,30]
[347190300,1735555566052,-1200.0,0.00023,30]
[347190301,1735555566100,-1900.0,0.00023,30]
[347190302,1735555566147,-159.53747191,0.00023,30]
[347190303,1735555566193,-1900.0,0.00023,30]
[347190304,1735555566239,-1200.0,0.00023,30]
[347190305,1735555566282,-1200.0,0.00023,30]
[347190306,1735555566326,-1200.0,0.00023,30]
[347190307,1735555566371,-500.0,0.00023,30]
[347190308,1735555566417,-1200.0,0.00023,30]
[347190309,1735555566465,-500.0,0.00023,30]
[347190310,1735555566511,-163.10428763,0.00023,30]
[347190311,1735555566554,-1200.0,0.00023,30]
[347190312,1735555566603,-1200.0,0.00023,30]
[347190313,1735555566647,-1200.0,0.00023,30]
[347190314,1735555566692,-297.63984493,0.00023,30]
[347190315,1735555566745,-1200.0,0.00023,30]
[347190316,1735555566791,-955.26804717,0.00023,30]
[347190317,1735555566836,-600.0,0.00023,30]
[347190318,1735555566881,-500.0,0.00023,30]
[347190319,1735555566925,-500.0,0.00023,30]
[347190320,1735555566971,-600.0,0.00023,30]
[347190321,1735555567017,-500.0,0.00023,30]
[347190322,1735555567061,-1200.0,0.00023,30]
[347190323,1735555567107,-600.0,0.00023,30]
[347190324,1735555567152,-500.0,0.00023,30]
[347190325,1735555567200,-600.0,0.00023,30]
[347190326,1735555567247,-700.0,0.00023,30]
[347190327,1735555567293,-939.61628589,0.00023,30]
[347190328,1735555567342,-700.0,0.00023,30]
[347190329,1735555567390,-500.0,0.00023,30]
[347190330,1735555567443,-600.0,0.00023,30]
[347190331,1735555567496,-688.38722532,0.00023,30]
[347190332,1735555567544,-500.0,0.00023,30]
[347190333,1735555567596,-600.0,0.00023,30]
[347190334,1735555567971,-500.0,0.00023,30]
[347190335,1735555568018,-700.0,0.00023,30]
[347190336,1735555568074,-500.0,0.00023,30]
[347190337,1735555568140,-500.0,0.00023,30]
[347190338,1735555568197,-500.0,0.00023,30]
[347190339,1735555568249,-500.0,0.00023,30]
[347190340,1735555568296,-600.0,0.00023,30]
[347190341,1735555568342,-500.0,0.00023,30]
[347190342,1735555568396,-500.0,0.00023,30]
[347190343,1735555568454,-700.0,0.00023,30]
[347190344,1735555568503,-600.0,0.00023,30]
[347190345,1735555568552,-700.0,0.00023,30]
[347190346,1735555568603,-600.0,0.00023,30]
[347190347,1735555568651,-500.0,0.00023,30]
[347190348,1735555568696,-700.0,0.00023,30]
[347190349,1735555568746,-600.0,0.00023,30]
[347190350,1735555568792,-700.0,0.00023,30]
[347190351,1735555568837,-500.0,0.00023,30]
[347190352,1735555568884,-600.0,0.00023,30]
[347190353,1735555568931,-470.2322072,0.00023,30]
[347190354,1735555568978,-500.0,0.00023,30]
[347190355,1735555569025,-700.0,0.00023,30]
[347190356,1735555569070,-600.0,0.00023,30]
[347190357,1735555569120,-500.0,0.00023,30]
[347190358,1735555569165,-500.0,0.00023,30]
[347190359,1735555569210,-700.0,0.00023,30]
[347190360,1735555569258,-187.49129392,0.00023,30]
[347190361,1735555569303,-600.0,0.00023,30]
[347190362,1735555569349,-500.0,0.00023,30]
[347190363,1735555569398,-500.0,0.00023,30]
[347190364,1735555569451,-700.0,0.00023,30]
[347190365,1735555569513,-500.0,0.00023,30]
[347190366,1735555569563,-496.87336667,0.00023,30]
[347190367,1735555569626,-500.0,0.00023,30]
[347190368,1735555569684,-412.27567433,0.00023,30]
[347190369,1735555569735,-500.0,0.00023,30]
[347190370,1735555569780,-1000.0,0.00023,30]
[347190371,1735555569825,-700.0,0.00023,30]
[347190372,1735555569871,-500.0,0.00023,30]
[347190373,1735555569914,-500.0,0.00023,30]
[347190374,1735555569962,-1000.0,0.00023,30]
[347190375,1735555570008,-700.0,0.00023,30]
[347190376,1735555570055,-500.0,0.00023,30]
[347190377,1735555570103,-500.0,0.00023,30]
[347190378,1735555570150,-700.0,0.00023,30]
[347190379,1735555570200,-1000.0,0.00023,30]
[347190380,1735555570248,-700.0,0.00023,30]
[347190381,1735555570293,-1000.0,0.00023,30]
[347190382,1735555570339,-1000.0,0.00023,30]
[347190383,1735555570385,-1000.0,0.00023,30]
[347190384,1735555570435,-500.0,0.00023,30]
[347190385,1735555570483,-1000.0,0.00023,30]
[347190386,1735555570528,-500.0,0.00023,30]
[347190387,1735555570572,-500.0,0.00023,30]
[347190388,1735555570618,-1000.0,0.00023,30]
[347190389,1735555570663,-500.0,0.00023,30]
[347190390,1735555570711,-1000.0,0.00023,30]
[347190391,1735555570757,-500.0,0.00023,30]
[347190392,1735555570805,-156.97444014,0.00023,30]
[347190393,1735555570850,-1000.0,0.00023,30]
[347190394,1735555570893,-500.0,0.00023,30]
[347190395,1735555570940,-500.0,0.00023,30]
[347190396,1735555570986,-1000.0,0.00023,30]
[347190397,1735555571033,-500.0,0.00023,30]
[347190398,1735555571079,-500.0,0.00023,30]
[347190399,1735555571127,-1000.0,0.00023,30]
[347190400,1735555571175,-500.0,0.00023,30]
[347190401,1735555571222,-500.0,0.00023,30]
[347190402,1735555571271,-1000.0,0.00023,30]
[347190403,1735555571318,-500.0,0.00023,30]
[347190404,1735555571363,-1000.0,0.00023,30]
[347190405,1735555571411,-500.0,0.00023,30]
[347190406,1735555571460,-500.0,0.00023,30]
[347190407,1735555571506,-500.0,0.00023,30]
[347190408,1735555571551,-500.0,0.00023,30]
[347190409,1735555571602,-584.01040891,0.00023,30]
[347190410,1735555571647,-500.7,0.00023,30]
[347190411,1735555571693,-470.2322072,0.00023,30]
[347190412,1735555571738,-531.96003463,0.00023,30]
[347190413,1735555571784,-412.27567433,0.00023,30]
[347190414,1735555571828,-211.5008727,0.00023,30]
[347190415,1735555571871,-470.2322072,0.00023,30]
[347190416,1735555571916,-412.27567433,0.00023,30]
[347190417,1735555571962,-412.27567433,0.00023,30]
[347190418,1735555572007,-470.2322072,0.00023,30]
[347190419,1735555572053,-253.2787227,0.00023,30]
[347190420,1735555572098,-343.17157251,0.00023,30]
[347190421,1735555572148,-348.41,0.00023,120]
[347190422,1735555572196,-400.0,0.00023,120]
[347190423,1735555572243,-500.0,0.00023,30]
[347190424,1735555572292,-150.0,0.00023006,120]
[347190425,1735555572337,-150.0,0.00023023,120]
[347190426,1735555572383,-150.0,0.000232,120]
[347190427,1735555572433,-200.0,0.00023533,120]
[347190428,1735555572723,-12326.64069158,0.0002373,30]
[347190429,1735555572770,-150.0,0.00023879,120]
[347190430,1735555572815,-6453.78,0.00024,30]
[347190431,1735555572861,-46990.19301044,0.00024,30]
[347190432,1735555572906,-56073.62515932,0.00024,30]
[347190433,1735555572955,-17332.98388956,0.00024,30]
[347190434,1735555573004,-2000.0,0.00024,120]
[347190435,1735555573053,-2000.0,0.00024118,120]
[347190436,1735555573099,-500.0,0.00024118,120]
[347190437,1735555573149,-150.0,0.00024286,120]
[347190438,1735555573193,-338.9598089,0.000244,120]
[347190439,1735555573239,-734.65,0.0002441,30]
[347190440,1735555573284,-150.0,0.00024522,120]
[347190441,1735555573330,-40000.0,0.0002466,40]
[347190442,1735555573375,-20072.28,0.000247,30]
[347190443,1735555573421,-40000.0,0.000247,30]
[347190444,1735555573468,-150.0,0.00024713,120]
[347190445,1735555573514,-150.0,0.00024713,120]
[347190446,1735555573558,-389.0,0.000248,120]
[347190447,1735555573607,-150.0,0.00024842,120]
[347190448,1735555573649,-1500.0,0.000249,30]
[347190449,1735555573693,-150.5,0.0002497,120]
[347190450,1735555573740,-177.13,0.0002497,120]
[347190451,1735555573784,-150.5,0.0002497,120]
[347190452,1735555573830,-318.0,0.0002497,120]
[347190453,1735555573874,-150.5,0.0002497,120]
[347190454,1735555573918,-318.0,0.0002497,120]
[347190455,1735555573967,-150.5,0.0002497,120]
[347190456,1735555574012,-150.5,0.0002498,120]
[347190457,1735555574057,-150.5,0.0002498,120]
[347190458,1735555574106,-150.5,0.0002498,120]
[347190459,1735555574152,-318.0,0.0002498,120]
[347190460,1735555574197,-150.5,0.0002498,120]
[347190461,1735555574243,-318.0,0.0002498,120]
[347190462,1735555574292,-150.5,0.0002498,120]
[347190463,1735555574339,-318.0,0.0002498,120]
[347190464,1735555574386,-320.63,0.0002498,120]
[347190465,1735555574434,-150.5,0.0002498,120]
[347190466,1735555574482,-150.5,0.0002498,120]
[347190467,1735555574529,-153.3,0.0002498,120]
[347190468,1735555574577,-259.27,0.0002498,120]
[347190469,1735555574623,-500.0,0.00024984,120]
[347190470,1735555574670,-150.0,0.00024987,120]
[347190471,1735555574718,-150.5,0.0002499,120]
[347190472,1735555574764,-150.5,0.0002499,120]
[347190473,1735555574813,-150.5,0.0002499,120]
[347190474,1735555574864,-318.0,0.0002499,120]
[347190475,1735555574910,-150.5,0.0002499,120]
[347190476,1735555574960,-318.0,0.0002499,120]
[347190477,1735555575010,-150.5,0.0002499,120]
[347190478,1735555575056,-318.0,0.0002499,120]
[347190479,1735555575106,-268.07,0.0002499,120]
[347190480,1735555575154,-318.0,0.0002499,120]
[347190481,1735555575207,-150.5,0.0002499,120]
[347190482,1735555575255,-150.5,0.0002499,120]
[347190483,1735555575304,-150.5,0.0002499,120]
[347190484,1735555575353,-150.5,0.0002499,120]
[347190485,1735555575405,-375.84682078,0.00024998,120]
[347190486,1735555575459,-3029.52489773,0.00025,30]
[347190487,1735555575515,-1225.75560896,0.00025,30]
[347190488,1735555575569,-54781.93600029,0.00025,30]
[347190489,1735555575623,-500.0,0.00025,30]
[347190490,1735555575675,-301.87579559,0.00025,30]
[347190491,1735555575729,-100000.0,0.00025,30]
[347190492,1735555575784,-3233.31854695,0.00025,30]
[347190493,1735555575838,-76400.0,0.00025,30]
[347190494,1735555575893,-3196.62148961,0.00025,60]
[347190495,1735555575942,-279.18318984,0.00025,120]
[347190496,1735555575994,-400.0,0.00025,120]
[347190497,1735555576050,-8026.0,0.00025,30]
[347190498,1735555576127,-150.0,0.00025043,120]
[347190499,1735555576187,-242.93,0.000257,31]
[347190500,1735555576242,-242.93,0.000257,31]
[347190501,1735555576299,-242.93,0.000257,31]
[347190502,1735555576351,-242.93,0.000257,31]
[347190503,1735555576410,-242.93,0.000257,31]
[347190504,1735555576461,-242.93,0.000257,31]
[347190505,1735555576516,-242.93,0.000257,31]
[347190506,1735555576565,-242.93,0.000257,31]
[347190507,1735555576620,-242.93,0.000257,31]
[347190508,1735555576672,-242.93,0.000257,31]
[347190509,1735555576720,-242.93,0.000257,31]
[347190510,1735555576766,-242.93,0.000257,31]
[347190511,1735555576818,-242.93,0.000257,31]
[347190512,1735555576864,-242.93,0.000257,31]
[347190513,1735555576910,-242.93,0.000257,31]
[347190514,1735555576956,-242.93,0.000257,31]
[347190515,1735555577004,-242.93,0.000257,31]
[347190516,1735555577054,-242.93,0.000257,31]
[347190517,1735555577103,-242.93,0.000257,31]
[347190518,1735555577154,-242.93,0.000257,31]
[347190519,1735555577205,-242.93,0.000257,31]
[347190520,1735555577254,-242.93,0.000257,31]
[347190521,1735555577303,-242.93,0.000257,31]
[347190522,1735555577564,-242.93,0.000257,31]